bitfinex/quotes_ETHUSD_20241223
["timestamp","ask_amount","ask_price","bid_price","bid_amount"]
[1734932854554,2.89345341,3320.7,3319.9,0.7764]
[1734932854728,3.01188,3320.2,3319.9,0.7764]
[1734932856662,3.78829,3320.6,3319.9,0.7764]
[1734932856864,2.89345341,3320.4,3319.1,0.7572]
[1734932857038,3.01214,3319.9,3319.1,0.7572]
[1734932857239,2.89345341,3320.4,3319.1,0.7572]
[1734932857441,3.01192,3320.2,3319.1,0.7572]
[1734932857864,2.89345341,3320.4,3319.1,0.9142205]
[1734932858064,3.0117,3320.4,3319.3,3.0]
[1734932858362,3.0117,3320.4,3319.4,0.819]
[1734932859365,0.30117,3320.4,3319.4,0.819]
[1734932859572,3.01196,3320.1,3319.4,0.819]
[1734932859864,0.788,3320.3,3319.4,0.819]
[1734932860085,3.01165,3320.5,3319.4,0.819]
[1734932860581,2.89345341,3320.7,3319.4,0.819]
[1734932860749,3.01169,3320.4,3319.4,0.819]
[1734932863368,0.36814534,3320.6,3319.4,0.819]
[1734932863690,3.01204,3320.1,3319.4,0.819]
[1734932864202,3.01172,3320.4,3319.4,0.819]
[1734932864860,3.37964534,3320.6,3319.6,0.7596]
[1734932865062,3.64775341,3321.4,3320.0,3.01199]
[1734932865301,3.01088,3321.3,3320.2,3.0]
[1734932865603,3.01088,3321.3,3320.1,3.01195]
[1734932865604,2.48960444,3321.6,3320.4,3.01167]
[1734932865806,7.78497422,3321.7,3320.6,0.8252]
[1734932866013,8.88867037,3321.7,3320.6,3.8252]
[1734932866307,8.88867037,3321.7,3320.7,0.8252]
[1734932867494,7.00765956,3321.7,3320.7,0.8252]
[1734932867908,3.0106,3321.6,3320.7,0.8252]
[1734932868198,3.01069,3321.5,3320.7,0.8252]
[1734932868397,3.4604871,3321.5,3320.7,0.8252]
[1734932869704,3.01079,3321.4,3320.7,0.8252]
[1734932870202,2.89345341,3320.9,3320.1,0.8293]
[1734932870501,3.0116,3320.5,3320.1,0.8293]
[1734932872402,3.01172,3320.4,3320.1,0.8293]
[1734932872600,3.0115,3320.6,3320.1,0.8293]
[1734932872806,3.31265,3320.6,3320.1,0.8293]
[1734932873167,0.30115,3320.6,3320.1,0.8293]
[1734932873368,3.01172,3320.4,3320.1,0.8293]
[1734932873599,3.50974348,3320.9,3320.1,0.8293]
[1734932873790,3.01183,3320.3,3320.1,0.8293]
[1734932875902,0.8033,3320.6,3319.2,0.7725]
[1734932876207,3.01186,3320.2,3319.2,0.7725]
[1734932876782,0.8033,3320.6,3319.2,0.7725]
[1734932877004,3.01149,3320.7,3319.6,0.7725]
[1734932877371,3.0116,3320.5,3319.6,0.7725]
[1734932882032,0.65212335,3320.7,3319.6,0.7725]
[1734932882400,3.66359335,3320.7,3319.6,0.7725]
[1734932882645,3.01122,3321.0,3319.9,3.7977]
[1734932882809,2.89345341,3321.3,3320.1,0.7977]
[1734932883190,3.01105,3321.1,3320.1,0.7977]
[1734932883396,3.01087,3321.3,3320.1,0.7977]
[1734932883720,0.34606671,3321.3,3320.1,0.7977]
[1734932883916,0.8059,3321.6,3320.1,0.7977]
[1734932884240,2.89345341,3321.7,3320.4,0.7834]
[1734932884423,3.60021506,3322.2,3320.9,3.01116]
[1734932884731,3.01015,3322.1,3321.1,0.7834]
[1734932886007,2.89345341,3322.5,3321.1,0.7834]
[1734932886215,3.38160534,3322.4,3321.1,3.79443]
[1734932886411,3.00996,3322.3,3321.2,0.8093]
[1734932886813,3.00978,3322.5,3321.3,0.8093]
[1734932887135,3.00978,3322.5,3321.4,0.8093]
[1734932888224,4.97564478,3322.9,3321.4,0.8093]
[1734932888426,3.00999,3322.3,3321.4,0.8093]
[1734932889915,3.00994,3322.4,3321.4,0.8093]
[1734932890847,3.00996,3322.3,3321.4,0.8093]
[1734932891044,3.01005,3322.2,3321.4,0.8093]
[1734932891224,3.01016,3322.1,3321.4,0.8093]
[1734932891422,3.00996,3322.3,3321.4,0.8093]
[1734932891948,3.01006,3322.2,3321.4,0.8093]
[1734932892621,3.00988,3322.4,3321.4,0.8093]
[1734932893221,0.28934534,3322.5,3321.4,0.8093]
[1734932893611,3.00996,3322.3,3321.4,0.8093]
[1734932893818,0.28934534,3322.5,3321.4,0.8093]
[1734932894345,5.90323341,3322.6,3321.4,0.8093]
[1734932894675,5.90323341,3322.6,3321.5,0.7958]
[1734932895073,2.89345341,3322.6,3321.5,0.7958]
[1734932895376,3.01005,3322.2,3321.5,0.7958]
[1734932895880,3.01016,3322.1,3321.5,0.7958]
[1734932896079,3.311176,3322.1,3321.5,0.7958]
[1734932896776,3.01024,3322.0,3321.5,0.7958]
[1734932897080,3.01036,3321.9,3321.5,0.7958]
[1734932897639,0.301016,3322.1,3321.5,0.7958]
[1734932897841,3.01043,3321.8,3321.5,0.7958]
[1734932898044,0.301043,3321.8,3320.8,0.7958]
[1734932898244,0.7625,3321.9,3320.8,0.7958]
[1734932898651,3.01053,3321.7,3320.8,0.7958]
[1734932899068,2.89345341,3321.8,3320.8,0.7958]
[1734932899272,3.01089,3321.3,3320.8,0.7958]
[1734932899496,3.01108,3321.1,3320.8,0.7958]
[1734932900481,3.01123,3320.9,3320.3,0.7958]
[1734932901388,3.01154,3320.6,3320.3,0.7958]
[1734932901679,0.7625,3320.7,3319.6,0.7958]
[1734932901844,3.01186,3320.2,3319.6,0.7958]
[1734932902049,3.01197,3320.1,3319.6,0.7958]
[1734932902386,0.301197,3320.1,3319.5,1.26041521]
[1734932902558,2.89345341,3319.9,3319.5,1.26041521]
[1734932902759,2.89345341,3319.9,3319.3,0.7958]
[1734932902760,3.01232,3319.7,3319.3,0.7958]
[1734932903649,3.01253,3319.5,3319.3,0.7958]
[1734932903848,3.01259,3319.4,3319.0,2.05621521]
[1734932904784,3.01259,3319.4,3319.0,0.7958]
[1734932905273,3.313849,3319.4,3319.0,0.7958]
[1734932907958,3.01288,3319.1,3318.3,0.8014]
[1734932908984,3.01292,3319.1,3318.3,0.8014]
[1734932909950,0.301259,3319.4,3318.3,0.8014]
[1734932910690,3.313859,3319.4,3318.3,3.8014]
[1734932911076,3.313859,3319.4,3318.4,0.7706]
[1734932911271,3.01245,3319.6,3318.5,3.0]
[1734932911473,2.89345341,3319.9,3317.9,5.90732341]
[1734932911474,5.90562341,3319.9,3318.6,0.7706]
[1734932911663,5.90562341,3319.9,3318.8,0.7774]
[1734932911864,3.01232,3319.7,3318.8,0.7774]
[1734932912955,5.90563341,3319.9,3318.8,0.7774]
[1734932913146,6.66950528,3319.9,3318.8,0.7774]
[1734932913788,3.01194,3320.2,3318.8,0.7879]
[1734932913951,2.89345341,3320.0,3318.6,0.7879]
[1734932914466,3.0125,3319.5,3318.6,0.7879]
[1734932914674,2.89345341,3319.5,3318.6,0.7879]
[1734932914877,3.01314,3318.8,3318.6,0.7879]
[1734932915384,0.7913,3319.4,3318.6,0.7879]
[1734932915615,3.01281,3319.2,3318.6,0.7879]
[1734932915958,3.01259,3319.5,3318.6,0.7879]
[1734932916264,3.89123504,3319.8,3318.6,0.7879]
[1734932916584,3.01232,3319.7,3318.6,0.7879]
[1734932916785,3.01242,3319.6,3318.6,0.7879]
[1734932916989,3.01251,3319.5,3318.6,0.7879]
[1734932917309,2.89345341,3319.5,3318.6,0.7879]
[1734932917523,5.90604341,3319.5,3318.6,0.7879]
[1734932917853,3.01261,3319.4,3318.6,0.7879]
[1734932918200,3.60328634,3319.3,3318.6,0.7879]
[1734932918855,2.89345341,3319.5,3318.6,0.7879]
[1734932919052,3.01248,3319.6,3318.6,0.7879]
[1734932921561,3.27380441,3319.8,3318.6,0.7879]
[1734932922009,2.89345341,3319.8,3318.8,3.0]
[1734932922157,5.90537341,3320.2,3318.9,0.7689]
[1734932922589,6.51015069,3320.2,3318.9,0.7689]
[1734932922914,3.01198,3320.1,3318.9,0.7689]
[1734932923464,3.01198,3320.1,3319.0,3.7689]
[1734932923661,3.01198,3320.1,3319.1,0.7689]
[1734932923975,2.89345341,3320.2,3319.1,3.7689]
[1734932924174,2.89345341,3320.2,3319.2,0.7689]
[1734932924617,5.90534341,3320.2,3319.2,0.7689]
[1734932924823,6.55622276,3320.2,3319.2,0.7689]
[1734932925790,3.01226,3319.8,3319.2,0.7689]
[1734932927295,3.54433276,3320.2,3319.2,0.7689]
[1734932927503,3.01204,3320.1,3319.2,0.7689]
[1734932927703,3.01204,3320.0,3319.2,0.7689]
[1734932927879,3.0116,3320.5,3319.3,3.01261]
[1734932928142,3.0116,3320.5,3319.5,0.8033]
[1734932928429,0.59050534,3320.4,3319.5,0.8033]
[1734932930031,0.59590125,3320.7,3319.4,3.0]
[1734932930032,0.59590125,3320.7,3319.7,0.7857]
[1734932930179,3.01132,3320.8,3319.7,0.7857]
[1734932930585,3.01132,3320.8,3319.8,0.8029]
[1734932931381,3.01143,3320.7,3319.8,0.8029]
[1734932932148,0.8323,3321.2,3320.0,3.01201]
[1734932932353,3.01095,3321.3,3320.3,0.8029]
[1734932932529,0.59044034,3321.2,3320.3,0.8029]
[1734932932855,2.89345341,3321.7,3320.5,0.8029]
[1734932933002,2.89345341,3321.7,3320.6,0.8029]
[1734932933198,2.89345341,3322.0,3320.3,3.55]
[1734932933553,5.90369341,3322.0,3320.9,0.8179]
[1734932934395,2.89345341,3322.0,3320.9,0.8179]
[1734932934639,2.89345341,3321.7,3320.9,0.8179]
[1734932934848,3.01059,3321.6,3320.9,0.8179]
[1734932935027,3.01102,3321.2,3320.9,0.8179]
[1734932936465,5.90422341,3321.4,3320.9,0.8179]
[1734932937162,3.01091,3321.3,3320.9,0.8179]
[1734932937466,3.60134634,3321.3,3320.9,0.8179]
[1734932937608,3.01097,3321.2,3320.9,0.8179]
[1734932938829,0.59043634,3321.3,3320.9,0.8179]
[1734932939165,5.90396341,3321.7,3320.9,0.8179]
[1734932939472,2.89345341,3321.7,3320.9,0.8179]
[1734932939613,3.01068,3321.5,3320.9,0.8179]
[1734932939814,3.82898,3322.1,3320.9,0.8179]
[1734932939815,3.35885132,3321.9,3320.9,0.8179]
[1734932940715,3.01043,3321.8,3320.9,0.8179]
[1734932940959,3.63567147,3321.8,3320.9,0.8179]
[1734932941473,3.01071,3321.5,3320.9,0.8179]
[1734932941778,3.01078,3321.4,3320.9,0.8179]
[1734932942267,3.01098,3321.2,3320.9,0.8179]
[1734932942576,2.89345341,3321.1,3320.2,0.8164]
[1734932942869,0.36707534,3321.0,3320.2,0.8164]
[1734932943212,3.01126,3320.9,3320.2,0.8164]
[1734932943416,0.36707534,3321.0,3320.2,0.8164]
[1734932943967,3.01113,3321.1,3320.2,0.8164]
[1734932944628,5.90427341,3321.4,3320.2,0.8164]
[1734932944823,3.01114,3321.0,3320.2,0.8164]
[1734932945758,3.01095,3321.2,3320.2,0.8164]
[1734932945941,3.01125,3320.9,3320.2,0.8164]
[1734932946339,3.312375,3320.9,3320.2,0.8164]
[1734932947081,3.01102,3321.2,3320.2,0.8164]
[1734932947371,3.01106,3321.1,3320.2,0.8164]
[1734932948250,5.90426341,3321.4,3320.2,0.8164]
[1734932948478,3.0106,3321.6,3320.4,0.8084]
[1734932948770,3.63567147,3321.8,3320.8,0.8025]
[1734932949155,3.01043,3321.8,3320.8,0.8025]
[1734932949741,3.01024,3322.0,3320.9,0.7997]
[1734932950074,3.01032,3321.9,3320.9,0.7997]
[1734932951683,3.01032,3321.9,3320.9,3.0]
[1734932951983,3.01032,3321.9,3321.0,0.7563]
[1734932952337,3.6598227,3321.9,3321.0,0.7563]
[1734932952527,0.6495027,3321.9,3321.0,0.7563]
[1734932952874,2.89345341,3321.5,3320.7,0.7563]
[1734932953027,3.68865341,3321.8,3320.7,0.7563]
[1734932953681,3.01079,3321.4,3320.7,0.7563]
[1734932955228,3.311869,3321.4,3320.7,0.7563]
[1734932956383,3.01055,3321.7,3320.7,0.7563]
[1734932956557,2.89345341,3321.8,3320.7,0.7563]
[1734932957075,3.01068,3321.6,3320.7,0.7563]
[1734932958225,2.89345341,3321.8,3320.7,0.7563]
[1734932958472,5.90391341,3321.8,3320.7,0.7563]
[1734932958675,3.01021,3322.1,3321.0,0.7524]
[1734932958876,3.01021,3322.1,3321.2,0.7524]
[1734932958877,3.01019,3322.1,3321.2,0.7524]
[1734932959069,3.01032,3321.9,3321.2,0.7524]
[1734932959839,0.301019,3322.1,3321.2,0.7524]
[1734932960163,3.01063,3321.6,3321.2,0.7524]
[1734932960337,3.01084,3321.4,3321.2,0.7524]
[1734932960550,3.01084,3321.4,3320.3,0.7524]
[1734932961377,3.0107,3321.5,3320.5,0.7524]
[1734932962194,3.0107,3321.5,3320.6,0.7524]
[1734932962487,3.01061,3321.6,3320.6,0.7524]
[1734932963282,3.0105,3321.7,3320.6,0.7524]
[1734932964542,2.89345341,3321.5,3320.6,0.7524]
[1734932965615,5.90413341,3321.5,3320.6,0.7524]
[1734932965756,3.01127,3320.9,3320.6,0.7524]
[1734932965957,3.01132,3320.8,3320.6,0.7524]
[1734932966208,3.01153,3320.6,3320.4,0.826]
[1734932967508,3.312452,3320.8,3320.4,0.826]
[1734932969006,3.01151,3320.6,3319.5,2.02671521]
[1734932969165,3.01151,3320.6,3319.6,0.7663]
[1734932969704,3.312452,3320.8,3319.6,3.01239]
[1734932969901,3.312452,3320.8,3319.7,3.0]
[1734932970105,0.301132,3320.8,3319.8,0.7826]
[1734932970304,3.71725341,3321.1,3319.8,0.7826]
[1734932970616,3.01122,3321.0,3319.8,0.7826]
[1734932970759,3.01122,3321.0,3319.9,6.01211]
[1734932970959,3.01122,3321.0,3320.0,0.791]
[1734932971159,3.01097,3321.2,3320.0,0.791]
[1734932971354,3.01105,3321.1,3320.0,0.791]
[1734932971715,3.01086,3321.4,3320.4,0.791]
[1734932971859,0.59043134,3321.3,3320.4,0.791]
[1734932972999,3.01123,3320.9,3320.4,0.791]
[1734932974360,0.7917,3321.1,3320.4,0.791]
[1734932974559,3.01151,3320.6,3320.1,0.7787]
[1734932974793,3.312661,3320.6,3320.1,0.7787]
[1734932976203,3.01151,3320.6,3320.1,0.7787]
[1734932977302,1.38433189,3321.1,3320.1,0.7787]
[1734932977480,2.89345341,3321.0,3320.1,0.7787]
[1734932977805,3.01166,3320.5,3320.1,0.7787]
[1734932978188,3.01123,3320.9,3320.1,0.7787]
[1734932978413,3.01114,3321.0,3320.1,0.7787]
[1734932978591,4.89198081,3321.2,3320.2,0.8216]
[1734932979112,3.01097,3321.2,3320.3,0.8216]
[1734932980170,4.89172081,3321.5,3320.3,3.0]
[1734932980386,3.01071,3321.5,3320.4,0.8063]
[1734932980792,3.01095,3321.3,3320.4,0.8063]
[1734932981515,3.01095,3321.3,3320.5,1.04361329]
[1734932981688,0.54822671,3321.5,3320.6,0.7567]
[1734932981894,0.5905463,3321.7,3320.6,0.7567]
[1734932982390,3.01096,3321.2,3320.6,0.7567]
[1734932983508,3.01068,3321.5,3320.6,0.7567]
[1734932983800,5.90413341,3321.5,3320.6,0.7567]
[1734932984001,3.01086,3321.4,3320.6,0.7567]
[1734932984603,1.88101081,3321.7,3320.7,3.0]
[1734932984807,1.88101081,3321.7,3320.4,6.01168]
[1734932985011,1.88101081,3321.7,3320.9,0.7567]
[1734932985181,1.88101081,3321.7,3321.0,0.7567]
[1734932986622,3.01032,3322.0,3321.2,0.7567]
[1734932986792,0.301032,3321.9,3321.2,0.7567]
[1734932987922,3.01037,3321.9,3321.2,0.7567]
[1734932988844,3.01042,3321.8,3321.2,0.7567]
[1734932989151,1.34221358,3322.2,3321.2,0.7567]
[1734932989152,3.01057,3321.7,3321.2,0.7567]
[1734932991143,5.90372341,3322.0,3321.2,0.7567]
[1734932991315,3.61804711,3322.0,3321.2,0.7567]
[1734932991517,3.01052,3321.7,3321.2,0.7567]
[1734932992452,3.59806358,3322.2,3321.2,0.7567]
[1734932994322,3.01014,3322.1,3321.2,0.7567]
[1734932996551,1.88101081,3322.6,3321.6,3.01059]
[1734932996753,4.89072081,3322.6,3321.8,0.7764]
[1734932996963,3.7486168,3322.5,3321.8,0.7764]
[1734932997458,0.7388368,3322.5,3321.8,0.7764]
[1734932997659,1.5487368,3322.5,3321.8,0.7764]
[1734932997820,3.01014,3322.1,3321.8,0.7764]
[1734933000551,0.301014,3322.1,3321.0,0.8023]
[1734933000744,2.89345341,3322.2,3321.0,0.8023]
[1734933000955,2.89345341,3321.9,3321.0,0.8023]
[1734933001164,3.01081,3321.4,3321.0,0.8023]
[1734933001351,2.89345341,3321.9,3321.0,0.8023]
[1734933001557,3.01086,3321.4,3321.0,0.8023]
[1734933002359,3.01088,3321.3,3321.0,0.8023]
[1734933002529,0.7906,3321.7,3320.9,1.26041521]
[1734933002864,3.01114,3321.0,3320.7,0.7579]
[1734933003223,3.01088,3321.3,3320.7,0.7579]
[1734933003420,3.27355441,3321.6,3320.7,0.7579]
[1734933003621,3.01097,3321.2,3320.7,0.7579]
[1734933006387,3.01078,3321.4,3320.7,0.7579]
[1734933007071,3.01049,3321.8,3320.7,0.7579]
[1734933007449,1.88101081,3321.9,3320.8,0.8031]
[1734933007793,1.88101081,3321.9,3321.0,0.8168]
[1734933008093,0.7388958,3321.9,3321.0,0.8168]
[1734933008292,3.01026,3322.0,3321.0,0.8168]
[1734933008788,3.01032,3321.9,3321.0,0.8168]
[1734933010037,2.89345341,3322.2,3321.0,0.8168]
[1734933010038,3.01018,3322.1,3321.0,0.8168]
[1734933010241,3.00996,3322.3,3321.2,3.0]
[1734933010445,2.61984761,3322.5,3321.4,3.8168]
[1734933010649,1.88101081,3322.5,3321.7,0.7645]
[1734933010882,4.89077081,3322.6,3321.7,0.7645]
[1734933011261,1.88101081,3322.6,3321.7,0.7645]
[1734933011479,1.88101081,3322.6,3322.0,0.7954]
[1734933011703,1.88101081,3322.6,3322.1,0.7954]
[1734933012086,3.00923,3323.2,3322.1,0.7954]
[1734933012087,4.89024081,3323.2,3322.1,0.7954]
[1734933012797,5.91837896,3323.2,3322.1,0.7954]
[1734933013445,3.00932,3323.1,3322.1,0.7954]
[1734933013645,3.00927,3323.1,3322.1,0.7954]
[1734933016262,3.00903,3323.4,3322.1,0.7954]
[1734933016464,3.82328,3323.6,3322.3,3.77372]
[1734933016699,3.82328,3323.6,3321.9,2.89345341]
[1734933016700,3.86855442,3323.6,3322.4,0.7638]
[1734933016997,1.88101081,3323.7,3322.7,3.00957]
[1734933017198,1.88101081,3323.7,3322.9,3.0094]
[1734933017496,1.88101081,3323.7,3323.1,3.7638]
[1734933017658,1.88101081,3323.7,3323.3,0.7638]
[1734933018096,0.59733059,3324.3,3323.3,0.7638]
[1734933018296,3.00824,3324.2,3323.3,0.7638]
[1734933018506,3.00834,3324.1,3323.3,0.7638]
[1734933018799,1.39574045,3324.3,3323.3,0.7638]
[1734933018964,3.00843,3324.0,3323.3,0.7638]
[1734933019391,1.39574045,3324.3,3323.3,0.7638]
[1734933019392,3.00861,3323.8,3323.3,0.7638]
[1734933020006,3.00876,3323.7,3323.3,0.7638]
[1734933020229,0.300861,3323.8,3323.0,0.8329]
[1734933020393,3.00915,3323.2,3323.0,0.8329]
[1734933021729,3.00923,3323.1,3323.0,0.8329]
[1734933022228,3.00944,3322.9,3322.1,0.7604]
[1734933022445,3.00953,3322.8,3322.1,0.7604]
[1734933022989,3.00976,3322.6,3322.1,0.7604]
[1734933023552,4.28543592,3323.3,3322.1,0.7604]
[1734933023728,0.7927,3322.9,3321.8,0.7709]
[1734933023896,3.0098,3322.5,3321.8,0.7709]
[1734933024207,3.01032,3321.9,3321.2,0.7709]
[1734933024607,3.00996,3322.3,3321.2,0.7709]
[1734933024839,3.0104,3321.9,3321.2,0.7709]
[1734933026636,3.01055,3321.7,3321.2,0.7709]
[1734933026794,3.01062,3321.6,3321.2,0.7709]
[1734933026999,0.379555,3322.1,3321.2,0.7709]
[1734933027218,3.01036,3321.9,3321.2,0.7709]
[1734933028137,3.01011,3322.2,3321.2,0.7709]
[1734933028344,0.784,3322.7,3321.2,0.7709]
[1734933028498,3.01003,3322.3,3321.2,0.7709]
[1734933029453,4.39642878,3322.7,3321.2,0.7709]
[1734933029598,0.43964288,3322.6,3321.2,0.7709]
[1734933030054,3.01015,3322.1,3321.2,0.7709]
[1734933030199,3.01025,3322.0,3321.2,0.7709]
[1734933030400,3.00993,3322.4,3321.2,0.7709]
[1734933030599,0.43964288,3322.6,3321.2,0.7709]
[1734933030799,3.01019,3322.1,3321.2,0.7709]
[1734933032216,0.60276878,3322.7,3321.2,0.7709]
[1734933032444,3.00984,3322.5,3321.5,0.831]
[1734933033000,0.59475116,3322.8,3321.5,0.831]
[1734933033247,3.0097,3322.6,3321.6,0.831]
[1734933033540,0.7606,3323.0,3321.6,0.831]
[1734933033727,3.00979,3322.5,3321.6,0.831]
[1734933034304,3.0097,3322.6,3321.6,0.831]
[1734933034557,3.00978,3322.5,3321.6,0.831]
[1734933034837,1.44490349,3322.9,3321.6,0.831]
[1734933035142,3.00998,3322.3,3321.6,0.831]
[1734933035338,3.01005,3322.2,3321.6,0.831]
[1734933035554,3.01017,3322.1,3321.6,0.831]
[1734933035841,0.300998,3322.3,3321.6,0.831]
[1734933036000,3.01039,3321.9,3321.6,0.831]
[1734933037261,3.01014,3322.1,3321.6,0.831]
[1734933038343,2.89345341,3322.7,3321.6,0.831]
[1734933038560,3.00995,3322.4,3321.6,0.831]
[1734933039013,3.00968,3322.7,3321.6,0.831]
[1734933039416,3.00979,3322.5,3321.6,0.831]
[1734933039805,3.0099,3322.4,3321.6,0.831]
[1734933040548,3.01016,3322.1,3321.6,0.831]
[1734933041313,0.7857,3322.6,3321.6,0.831]
[1734933041514,3.0105,3321.7,3321.0,0.7868]
[1734933042024,3.01015,3322.1,3321.0,0.7868]
[1734933042245,3.01015,3322.1,3321.2,0.8103]
[1734933042412,3.00991,3322.4,3321.3,0.8103]
[1734933043052,3.00996,3322.3,3321.3,0.8103]
[1734933044256,3.01006,3322.2,3321.3,0.8103]
[1734933045213,0.301006,3322.2,3321.3,0.8103]
[1734933045408,0.8044,3322.6,3321.3,0.8103]
[1734933045633,3.01052,3321.7,3321.3,0.8103]
[1734933047655,3.01061,3321.6,3321.3,0.8103]
[1734933049056,3.01005,3322.2,3321.3,0.8103]
[1734933049368,3.01024,3322.0,3321.3,0.8103]
[1734933050253,3.00978,3322.5,3321.3,0.8103]
[1734933050254,3.01006,3322.2,3321.3,0.8103]
[1734933050426,0.28656928,3322.6,3321.3,0.8103]
[1734933050659,0.59827076,3322.7,3321.5,3.8216]
[1734933050844,3.00978,3322.5,3321.6,0.8216]
[1734933051653,5.71480081,3323.1,3321.6,0.8216]
[1734933051948,3.00949,3322.9,3321.7,0.8216]
[1734933052148,5.90263341,3323.2,3321.9,3.0]
[1734933052348,3.00924,3323.1,3322.0,0.8216]
[1734933052548,1.88101081,3323.3,3322.1,0.8216]
[1734933052749,1.88101081,3323.3,3322.3,0.8216]
[1734933052957,1.88101081,3323.3,3322.4,0.8216]
[1734933053483,3.00903,3323.4,3322.4,0.8216]
[1734933054989,0.300861,3323.8,3322.5,3.0]
[1734933055190,3.00856,3323.9,3322.5,0.8155]
[1734933055351,1.88101081,3324.1,3322.3,3.0]
[1734933055352,4.88935081,3324.1,3322.9,0.8155]
[1734933055699,0.7387038,3324.0,3323.0,0.8155]
[1734933056885,3.00834,3324.1,3323.0,0.8155]
[1734933057378,1.36171633,3324.4,3323.0,0.8155]
[1734933057592,2.89345341,3324.3,3323.0,0.8155]
[1734933058488,3.00862,3323.8,3323.0,0.8155]
[1734933059568,2.89345341,3324.3,3323.0,0.8155]
[1734933059569,3.00873,3323.7,3323.0,0.8155]
[1734933060654,3.0088,3323.6,3323.0,0.8155]
[1734933061778,3.00859,3323.9,3323.0,0.8155]
[1734933061988,0.601692,3323.9,3323.0,0.8155]
[1734933062293,3.00833,3324.1,3323.0,0.8155]
[1734933063780,3.00871,3323.7,3323.0,0.8155]
[1734933064894,2.89345341,3324.3,3323.0,0.8155]
[1734933065099,3.0084,3324.1,3323.0,0.8155]
[1734933065467,3.00815,3324.3,3323.0,3.00929]
[1734933065664,3.00827,3324.2,3323.1,3.0]
[1734933066004,0.59661633,3324.4,3322.6,1.00976431]
[1734933066005,3.00851,3323.9,3322.9,3.0]
[1734933066861,2.89345341,3324.0,3322.6,3.0]
[1734933067102,3.00875,3323.7,3322.6,3.0]
[1734933067400,3.00883,3323.6,3322.6,3.0]
[1734933067701,3.309753,3323.5,3322.6,3.0]
[1734933068492,3.309753,3323.5,3322.7,0.7989]
[1734933069207,3.00896,3323.4,3322.7,0.7989]
[1734933069383,0.300883,3323.5,3322.7,0.7989]
[1734933069933,3.0086,3323.9,3322.7,0.7989]
[1734933070087,4.88930081,3324.2,3323.0,0.8188]
[1734933070286,4.88930081,3324.2,3323.1,0.7908]
[1734933070624,1.88101081,3324.2,3323.1,3.0]
[1734933070818,4.88925081,3324.2,3323.2,0.7908]
[1734933071134,1.88101081,3324.2,3323.2,0.7908]
[1734933071310,3.00862,3323.8,3323.2,0.7908]
[1734933071612,0.7386938,3324.2,3323.2,0.7908]
[1734933071784,0.7931,3324.0,3323.2,0.7908]
[1734933071971,3.00897,3323.4,3323.2,0.7908]
[1734933073486,0.7931,3324.0,3323.2,0.7908]
[1734933073773,3.00875,3323.7,3323.2,0.7908]
[1734933073974,3.00879,3323.6,3323.2,0.7908]
[1734933074568,3.00853,3323.9,3323.2,0.7908]
[1734933074884,3.00809,3324.4,3323.2,0.7908]
[1734933075094,3.0083,3324.2,3323.2,0.7908]
[1734933075412,3.0083,3324.2,3323.3,0.7908]
[1734933076286,3.00833,3324.1,3323.3,0.7908]
[1734933076609,3.00828,3324.2,3323.3,0.7908]
[1734933076980,0.7931,3324.8,3323.3,0.7908]
[1734933077340,3.008,3324.5,3323.4,3.0]
[1734933077494,3.008,3324.5,3323.5,0.7908]
[1734933078392,3.00778,3324.8,3323.6,0.55]
[1734933078630,3.00778,3324.8,3323.5,0.8097]
[1734933078812,3.00778,3324.8,3323.6,0.55]
[1734933079013,3.00778,3324.8,3323.7,0.8097]
[1734933079590,3.00726,3325.3,3324.1,3.0]
[1734933079940,4.88820081,3325.4,3324.4,0.8097]
[1734933080097,3.00746,3325.1,3324.4,0.8097]
[1734933080424,3.00763,3324.9,3324.4,0.8097]
[1734933080577,3.00773,3324.8,3324.4,0.8097]
[1734933080984,0.7947,3324.9,3323.7,0.7639]
[1734933081225,3.37650534,3324.8,3323.7,0.7639]
[1734933081447,3.00783,3324.7,3323.7,0.7639]
[1734933081993,0.36881534,3324.8,3323.7,0.7639]
[1734933082167,1.88101081,3326.2,3325.3,0.7639]
[1734933082300,1.88101081,3326.2,3325.5,0.7639]
[1734933082948,2.49964563,3326.2,3325.7,0.8158]
[1734933083155,1.92081056,3326.1,3325.7,0.8158]
[1734933084717,3.00661,3326.0,3325.7,0.8158]
[1734933085037,1.60040147,3325.9,3325.7,0.8158]
[1734933086071,3.00652,3326.1,3325.7,0.8158]
[1734933087770,3.00594,3326.8,3325.7,0.8158]
[1734933087771,3.00628,3326.4,3325.7,0.8158]
[1734933088158,0.9647415,3327.1,3325.7,0.8158]
[1734933088159,3.00643,3326.2,3325.7,0.8158]
[1734933088338,0.300643,3326.1,3325.7,0.8158]
[1734933091175,0.9647415,3327.1,3325.7,0.8158]
[1734933091176,3.00589,3326.8,3325.7,0.8158]
[1734933091333,3.00589,3326.8,3325.8,0.8257]
[1734933091687,0.9647415,3327.1,3325.8,0.8257]
[1734933091987,3.00637,3326.3,3325.8,0.8257]
[1734933092674,3.00583,3326.9,3325.8,0.8257]
[1734933093177,0.9647415,3327.1,3326.0,0.7664]
[1734933093178,0.1700415,3327.1,3326.0,0.7664]
[1734933093363,0.9411415,3327.1,3326.0,0.7664]
[1734933093563,3.00607,3326.6,3326.0,0.7664]
[1734933093870,0.9411415,3327.1,3326.0,0.7664]
[1734933094075,3.00585,3326.9,3326.0,0.7664]
[1734933094246,3.00608,3326.6,3326.0,0.7664]
[1734933094441,0.300585,3326.8,3326.0,0.7664]
[1734933094442,3.00598,3326.7,3326.0,0.7664]